[Event "*** Titled Tuesday Blitz"]
[Site "Chess.com"]
[Date "2020.04.14"]
[Round "3"]
[White "SavelijTartakover"]
[Black "plumalka"]
[Result "1-0"]
[WhiteElo "2598"]
[BlackElo "2377"]
[TimeControl "180+1"]
[EndTime "10:29:47 PDT"]
[Termination "SavelijTartakover won by resignation"]

1. d4 {[%clk 0:03:00.9]} 1... Nf6 {[%clk 0:02:57.9]} 2. c4 {[%clk 0:03:00.3]}
2... c5 {[%clk 0:02:57.9]} 3. d5 {[%clk 0:02:59.2]} 3... b5 {[%clk 0:02:58.1]}
4. Qc2 {[%clk 0:02:58.6]} 4... bxc4 {[%clk 0:02:57.8]} 5. e4 {[%clk 0:02:58.4]}
5... d6 {[%clk 0:02:57.9]} 6. Bxc4 {[%clk 0:02:57.8]} 6... g6 {[%clk 0:02:58.2]}
7. h3 {[%clk 0:02:57.7]} 7... Bg7 {[%clk 0:02:58.5]} 8. Nf3 {[%clk 0:02:57.5]}
8... Nbd7 {[%clk 0:02:57.7]} 9. O-O {[%clk 0:02:56.7]} 9... Nb6 {[%clk
0:02:57.6]} 10. Na3 {[%clk 0:02:52.6]} 10... O-O {[%clk 0:02:54.3]} 11. Rb1
{[%clk 0:02:51.6]} 11... Nfd7 {[%clk 0:02:39.9]} 12. b3 {[%clk 0:02:48.2]} 12...
Nxc4 {[%clk 0:02:34.6]} 13. bxc4 {[%clk 0:02:42.9]} 13... Qa5 {[%clk 0:02:27.6]}
14. Rb3 {[%clk 0:02:29.1]} 14... Ba6 {[%clk 0:02:24.5]} 15. Bb2 {[%clk
0:02:26.2]} 15... Rab8 {[%clk 0:02:20.8]} 16. Bxg7 {[%clk 0:02:23.3]} 16... Kxg7
{[%clk 0:02:15.4]} 17. Rfb1 {[%clk 0:02:19.9]} 17... Nb6 {[%clk 0:02:04.1]} 18.
e5 {[%clk 0:02:11.5]} 18... Qa4 {[%clk 0:01:51.8]} 19. exd6 {[%clk 0:01:55.5]}
19... exd6 {[%clk 0:01:51.7]} 20. Nd2 {[%clk 0:01:52.8]} 20... Qa5 {[%clk
0:01:39.4]} 21. Ne4 {[%clk 0:01:49]} 21... Rbd8 {[%clk 0:01:32.4]} 22. Nb5
{[%clk 0:01:37]} 22... Bxb5 {[%clk 0:01:27.6]} 23. Rxb5 {[%clk 0:01:37.9]} 23...
Qa3 {[%clk 0:01:22.7]} 24. R5b3 {[%clk 0:01:08.2]} 24... Qa4 {[%clk 0:01:21.8]}
25. Qb2+ {[%clk 0:01:08]} 25... f6 {[%clk 0:01:20.8]} 26. Ra3 {[%clk 0:00:50.5]}
26... Qxc4 {[%clk 0:01:08.4]} 27. Rxa7+ {[%clk 0:00:50]} 27... Kh6 {[%clk
0:01:08.3]} 28. Nxf6 {[%clk 0:00:46.8]} 28... Nxd5 {[%clk 0:00:48.6]} 29. Rxh7+
{[%clk 0:00:38.8]} 29... Kg5 {[%clk 0:00:48.6]} 30. Nxd5 {[%clk 0:00:28.1]}
30... Qd4 {[%clk 0:00:48.1]} 31. Qc1+ {[%clk 0:00:23.9]} 31... Kf5 {[%clk
0:00:47.3]} 32. Ne7+ {[%clk 0:00:22.3]} 32... Ke6 {[%clk 0:00:47]} 33. Rb2
{[%clk 0:00:20.9]} 33... d5 {[%clk 0:00:40]} 34. Re2+ {[%clk 0:00:20.2]} 34...
Kd6 {[%clk 0:00:40.4]} 35. Qa3 {[%clk 0:00:18.9]} 35... Ra8 {[%clk 0:00:39.2]}
36. Qg3+ {[%clk 0:00:18.3]} 36... Qf4 {[%clk 0:00:36.8]} 37. Qxf4+ {[%clk
0:00:17.1]} 37... Rxf4 {[%clk 0:00:37.7]} 38. Nxg6 {[%clk 0:00:17.2]} 38... Rf6
{[%clk 0:00:37.4]} 39. Nh4 {[%clk 0:00:15.9]} 39... d4 {[%clk 0:00:37.6]} 40.
Nf3 {[%clk 0:00:15.8]} 40... Kd5 {[%clk 0:00:37.1]} 41. Rh4 {[%clk 0:00:15.2]}
41... Kc4 {[%clk 0:00:37.1]} 42. Rd2 {[%clk 0:00:14.7]} 42... Kc3 {[%clk
0:00:37.2]} 43. Rd1 {[%clk 0:00:11.5]} 43... Kc2 {[%clk 0:00:36.4]} 44. Rf1
{[%clk 0:00:09.8]} 44... Rxa2 {[%clk 0:00:35.5]} 45. Nxd4+ {[%clk 0:00:09.7]}
45... cxd4 {[%clk 0:00:35.1]} 46. Rxd4 {[%clk 0:00:10.1]} 46... Kc3 {[%clk
0:00:35.2]} 47. Rg4 {[%clk 0:00:09.4]} 47... Kd3 {[%clk 0:00:34.5]} 48. Rg8
{[%clk 0:00:08.7]} 48... Ra5 {[%clk 0:00:32.4]} 49. Re8 {[%clk 0:00:07.9]} 49...
Raf5 {[%clk 0:00:31.4]} 50. Re3+ {[%clk 0:00:07]} 50... Kd4 {[%clk 0:00:31.4]}
51. Re7 {[%clk 0:00:06.1]} 51... Rg5 {[%clk 0:00:31.4]} 52. g3 {[%clk
0:00:05.5]} 52... Rf3 {[%clk 0:00:28.7]} 53. Kg2 {[%clk 0:00:05.4]} 53... Rd3
{[%clk 0:00:27.4]} 54. Rfe1 {[%clk 0:00:04.6]} 54... Kc5 {[%clk 0:00:26.9]} 55.
R7e5+ {[%clk 0:00:04.2]} 55... Rd5 {[%clk 0:00:26.4]} 56. Rxg5 {[%clk
0:00:03.6]} 56... Rxg5 {[%clk 0:00:26.8]} 57. h4 {[%clk 0:00:04.5]} 57... Rg6
{[%clk 0:00:27.2]} 58. Rc1+ {[%clk 0:00:04.8]} 58... Kd6 {[%clk 0:00:27.4]} 59.
Re1 {[%clk 0:00:05.7]} 59... Rg7 {[%clk 0:00:27.4]} 60. Re3 {[%clk 0:00:06]}
60... Rg6 {[%clk 0:00:27.7]} 61. Rf3 {[%clk 0:00:06.9]} 61... Rh6 {[%clk
0:00:28.1]} 62. Rf4 {[%clk 0:00:07]} 62... Ke6 {[%clk 0:00:28.6]} 63. Kf3 {[%clk
0:00:07.9]} 63... Rg6 {[%clk 0:00:28.8]} 64. Re4+ {[%clk 0:00:07.6]} 64... Kf7
{[%clk 0:00:29]} 65. Rf4+ {[%clk 0:00:07.3]} 65... Ke6 {[%clk 0:00:29.5]} 66. g4
{[%clk 0:00:06.9]} 66... Rg8 {[%clk 0:00:29.5]} 67. g5 {[%clk 0:00:06.9]} 67...
Rb8 {[%clk 0:00:29.1]} 68. Kg4 {[%clk 0:00:06.8]} 68... Rb3 {[%clk 0:00:28.8]}
69. Rf6+ {[%clk 0:00:07.1]} 69... Ke7 {[%clk 0:00:28.6]} 70. f4 {[%clk 0:00:08]}
70... Rb1 {[%clk 0:00:28.6]} 71. h5 {[%clk 0:00:07.8]} 71... Rg1+ {[%clk
0:00:28.7]} 72. Kf5 {[%clk 0:00:08.2]} 72... Rb1 {[%clk 0:00:28.8]} 73. h6
{[%clk 0:00:08.9]} 73... Rb5+ {[%clk 0:00:27.6]} 74. Kg6 {[%clk 0:00:08.9]}
74... Rb8 {[%clk 0:00:28.5]} 75. h7 {[%clk 0:00:08.8]} 75... Rh8 {[%clk
0:00:28.6]} 76. Kg7 {[%clk 0:00:08.6]} 76... Rxh7+ {[%clk 0:00:29.1]} 77. Kxh7
{[%clk 0:00:08.4]} 1-0

[Event "*** Titled Tuesday Blitz"]
[Site "Chess.com"]
[Date "2020.04.14"]
[Round "3"]
[White "AwareIdea"]
[Black "AtabayevSaparmyrat"]
[Result "1/2-1/2"]
[WhiteElo "2543"]
[BlackElo "2780"]
[TimeControl "180+1"]
[EndTime "10:29:49 PDT"]
[Termination "Game drawn by repetition"]

1. d4 {[%clk 0:03:00.9]} 1... Nf6 {[%clk 0:02:59.7]} 2. Bf4 {[%clk 0:02:59.6]}
2... d5 {[%clk 0:02:56.6]} 3. e3 {[%clk 0:02:59.2]} 3... Bf5 {[%clk 0:02:53.1]}
4. c4 {[%clk 0:02:56.1]} 4... e6 {[%clk 0:02:47.9]} 5. Nc3 {[%clk 0:02:54.8]}
5... c6 {[%clk 0:02:40.3]} 6. Qb3 {[%clk 0:02:51.5]} 6... Qb6 {[%clk 0:02:32.4]}
7. c5 {[%clk 0:02:51.7]} 7... Qxb3 {[%clk 0:02:32.3]} 8. axb3 {[%clk 0:02:52.6]}
8... Nbd7 {[%clk 0:02:09.7]} 9. b4 {[%clk 0:02:51.9]} 9... Nh5 {[%clk
0:02:07.9]} 10. Bg3 {[%clk 0:02:33.3]} 10... Nxg3 {[%clk 0:02:02]} 11. hxg3
{[%clk 0:02:34.2]} 11... Be7 {[%clk 0:01:46.2]} 12. b5 {[%clk 0:02:33.7]} 12...
O-O {[%clk 0:01:41.9]} 13. b4 {[%clk 0:02:10.8]} 13... cxb5 {[%clk 0:01:21]} 14.
Bxb5 {[%clk 0:02:08.9]} 14... Nf6 {[%clk 0:01:21.3]} 15. Nf3 {[%clk 0:02:06.9]}
15... a6 {[%clk 0:00:59.1]} 16. Be2 {[%clk 0:01:57.6]} 16... Nd7 {[%clk
0:00:42.2]} 17. Kd2 {[%clk 0:01:53.4]} 17... f6 {[%clk 0:00:29.2]} 18. Bd3
{[%clk 0:01:52.9]} 18... Bxd3 {[%clk 0:00:26.5]} 19. Kxd3 {[%clk 0:01:53.8]}
19... Rfd8 {[%clk 0:00:23]} 20. Ke2 {[%clk 0:01:50.4]} 20... Rac8 {[%clk
0:00:16.9]} 21. Rhb1 {[%clk 0:01:47.5]} 21... Nf8 {[%clk 0:00:12.8]} 22. b5
{[%clk 0:01:46.1]} 22... axb5 {[%clk 0:00:13.7]} 23. Rxb5 {[%clk 0:01:45.6]}
23... Rd7 {[%clk 0:00:12.1]} 24. Rab1 {[%clk 0:01:33.9]} 24... Rcc7 {[%clk
0:00:09.4]} 25. R5b3 {[%clk 0:01:29]} 25... Ng6 {[%clk 0:00:07.2]} 26. Nb5
{[%clk 0:01:28.1]} 26... Rc8 {[%clk 0:00:07.5]} 27. Nc3 {[%clk 0:01:08.6]} 27...
Rcc7 {[%clk 0:00:07.8]} 28. Ra1 {[%clk 0:01:05.2]} 28... e5 {[%clk 0:00:07.3]}
29. Ra7 {[%clk 0:00:58.6]} 29... Kf7 {[%clk 0:00:06.7]} 30. Nb5 {[%clk
0:00:46.9]} 30... Rc8 {[%clk 0:00:06.9]} 31. Nc3 {[%clk 0:00:38.9]} 31... Rcc7
{[%clk 0:00:06.6]} 32. Na4 {[%clk 0:00:38]} 32... Nf8 {[%clk 0:00:05.8]} 33. Nb6
{[%clk 0:00:37.2]} 33... Rd8 {[%clk 0:00:06.3]} 34. Na4 {[%clk 0:00:30.7]} 34...
Rdd7 {[%clk 0:00:06.6]} 35. dxe5 {[%clk 0:00:27.4]} 35... Ne6 {[%clk 0:00:06.3]}
36. exf6 {[%clk 0:00:26.8]} 36... gxf6 {[%clk 0:00:07.2]} 37. Nd4 {[%clk
0:00:25.6]} 37... Nxc5 {[%clk 0:00:07.6]} 38. Nxc5 {[%clk 0:00:25.7]} 38... Bxc5
{[%clk 0:00:08.5]} 39. Ra8 {[%clk 0:00:21.9]} 39... Bxd4 {[%clk 0:00:07.2]} 40.
exd4 {[%clk 0:00:22.8]} 40... Re7+ {[%clk 0:00:07.5]} 41. Kf3 {[%clk 0:00:21.7]}
41... Rc4 {[%clk 0:00:08]} 42. Rb8 {[%clk 0:00:20]} 42... Rxd4 {[%clk
0:00:08.4]} 43. R8xb7 {[%clk 0:00:19.5]} 43... Rxb7 {[%clk 0:00:09.3]} 44. Rxb7+
{[%clk 0:00:20.4]} 44... Kg6 {[%clk 0:00:10.2]} 45. Rd7 {[%clk 0:00:20.5]} 45...
Rd1 {[%clk 0:00:10.6]} 46. Ke2 {[%clk 0:00:19.9]} 46... Rd4 {[%clk 0:00:11.1]}
47. Ke3 {[%clk 0:00:20]} 47... Re4+ {[%clk 0:00:11.1]} 48. Kd3 {[%clk 0:00:20]}
48... Re5 {[%clk 0:00:12]} 49. f4 {[%clk 0:00:19.4]} 49... Re1 {[%clk
0:00:11.1]} 50. Rxd5 {[%clk 0:00:18.4]} 50... Rg1 {[%clk 0:00:11.5]} 51. Ke3
{[%clk 0:00:17.1]} 51... Rxg2 {[%clk 0:00:11.7]} 52. Kf3 {[%clk 0:00:17.4]}
52... Ra2 {[%clk 0:00:12.1]} 53. g4 {[%clk 0:00:17.6]} 53... Ra3+ {[%clk
0:00:12.3]} 54. Kg2 {[%clk 0:00:16.8]} 54... Ra4 {[%clk 0:00:13.2]} 55. Kf3
{[%clk 0:00:16.4]} 55... Ra3+ {[%clk 0:00:13.2]} 56. Kg2 {[%clk 0:00:16.4]}
56... Rc3 {[%clk 0:00:13.6]} 57. Rd7 {[%clk 0:00:15.8]} 57... Ra3 {[%clk
0:00:11]} 58. Rd5 {[%clk 0:00:15.2]} 1/2-1/2

[Event "*** Titled Tuesday Blitz"]
[Site "Chess.com"]
[Date "2020.04.14"]
[Round "3"]
[White "malandragem"]
[Black "TV27"]
[Result "1-0"]
[WhiteElo "2508"]
[BlackElo "2071"]
[TimeControl "180+1"]
[EndTime "10:29:52 PDT"]
[Termination "malandragem won on time"]

1. d4 {[%clk 0:03:00.9]} 1... f5 {[%clk 0:02:57.9]} 2. c4 {[%clk 0:03:01.6]}
2... Nf6 {[%clk 0:02:57.4]} 3. g3 {[%clk 0:03:01.7]} 3... g6 {[%clk 0:02:54.5]}
4. Bg2 {[%clk 0:03:02.1]} 4... Bg7 {[%clk 0:02:54.3]} 5. Nh3 {[%clk 0:03:02.3]}
5... d6 {[%clk 0:02:53.3]} 6. O-O {[%clk 0:03:02.2]} 6... O-O {[%clk 0:02:52]}
7. d5 {[%clk 0:02:49.3]} 7... c6 {[%clk 0:02:48.4]} 8. Nf4 {[%clk 0:02:47.5]}
8... cxd5 {[%clk 0:02:47.4]} 9. cxd5 {[%clk 0:02:46]} 9... Na6 {[%clk
0:02:39.4]} 10. Nd2 {[%clk 0:02:42.3]} 10... Nc7 {[%clk 0:02:37.7]} 11. Nb3
{[%clk 0:02:41.5]} 11... g5 {[%clk 0:02:20.3]} 12. Nh3 {[%clk 0:02:22.5]} 12...
h6 {[%clk 0:02:18]} 13. f4 {[%clk 0:02:22.7]} 13... g4 {[%clk 0:02:13.7]} 14.
Nf2 {[%clk 0:02:22.9]} 14... e6 {[%clk 0:02:03.6]} 15. dxe6 {[%clk 0:02:22.1]}
15... Nxe6 {[%clk 0:02:02.9]} 16. Be3 {[%clk 0:02:07.9]} 16... Qe7 {[%clk
0:01:59.2]} 17. Qd2 {[%clk 0:02:05.7]} 17... h5 {[%clk 0:01:37.5]} 18. Rfd1
{[%clk 0:02:05.4]} 18... Rd8 {[%clk 0:01:32.6]} 19. Nd4 {[%clk 0:01:49.6]} 19...
Nxd4 {[%clk 0:01:27.2]} 20. Bxd4 {[%clk 0:01:46.9]} 20... Be6 {[%clk 0:01:20.2]}
21. e4 {[%clk 0:01:44.5]} 21... Nxe4 {[%clk 0:01:18]} 22. Nxe4 {[%clk
0:01:45.4]} 22... fxe4 {[%clk 0:01:16.2]} 23. Bxe4 {[%clk 0:01:46.3]} 23... Rac8
{[%clk 0:01:10.8]} 24. Bxg7 {[%clk 0:01:22.4]} 24... Qxg7 {[%clk 0:01:09.4]} 25.
Rac1 {[%clk 0:01:22.8]} 25... Rxc1 {[%clk 0:00:57.5]} 26. Rxc1 {[%clk
0:01:22.5]} 26... h4 {[%clk 0:00:52.3]} 27. Bd5 {[%clk 0:01:16.7]} 27... Qf7
{[%clk 0:00:47.9]} 28. Bxe6 {[%clk 0:01:08.6]} 28... Qxe6 {[%clk 0:00:38.7]} 29.
Rc7 {[%clk 0:00:40.6]} 29... Re8 {[%clk 0:00:37.2]} 30. Qc3 {[%clk 0:00:29.4]}
30... Qe1+ {[%clk 0:00:31.2]} 31. Qxe1 {[%clk 0:00:28.9]} 31... Rxe1+ {[%clk
0:00:30.2]} 32. Kf2 {[%clk 0:00:29.8]} 32... Rh1 {[%clk 0:00:29.1]} 33. Kg2
{[%clk 0:00:27.3]} 33... Ra1 {[%clk 0:00:27.5]} 34. gxh4 {[%clk 0:00:25.9]}
34... Rxa2 {[%clk 0:00:26.5]} 35. Rxb7 {[%clk 0:00:26.4]} 35... d5 {[%clk
0:00:26.1]} 36. Kg3 {[%clk 0:00:25.4]} 36... d4 {[%clk 0:00:25.2]} 37. Kxg4
{[%clk 0:00:25]} 37... d3 {[%clk 0:00:25]} 38. Kf3 {[%clk 0:00:25.3]} 38... d2
{[%clk 0:00:22.9]} 39. Ke2 {[%clk 0:00:25.4]} 39... Ra4 {[%clk 0:00:21.2]} 40.
Kxd2 {[%clk 0:00:13.4]} 40... Rxf4 {[%clk 0:00:20.1]} 41. Rxa7 {[%clk
0:00:13.7]} 41... Rxh4 {[%clk 0:00:19.8]} 42. Re7 {[%clk 0:00:13.5]} 42... Rxh2+
{[%clk 0:00:15.9]} 43. Kc3 {[%clk 0:00:14]} 43... Kf8 {[%clk 0:00:15.2]} 44. Re4
{[%clk 0:00:10.2]} 44... Rh7 {[%clk 0:00:12.8]} 45. b4 {[%clk 0:00:10.2]} 45...
Re7 {[%clk 0:00:12]} 46. Rd4 {[%clk 0:00:07]} 46... Ke8 {[%clk 0:00:10.9]} 47.
Kc4 {[%clk 0:00:07.9]} 47... Rd7 {[%clk 0:00:08.2]} 48. Re4+ {[%clk 0:00:06.4]}
48... Kd8 {[%clk 0:00:07.9]} 49. Kc5 {[%clk 0:00:06.2]} 49... Kc7 {[%clk
0:00:07]} 50. b5 {[%clk 0:00:04.5]} 50... Rh7 {[%clk 0:00:06.5]} 51. b6+ {[%clk
0:00:04.7]} 51... Kb7 {[%clk 0:00:06.5]} 52. Re5 {[%clk 0:00:05.3]} 52... Rg7
{[%clk 0:00:06.4]} 53. Rd5 {[%clk 0:00:05.6]} 53... Rh7 {[%clk 0:00:05.8]} 54.
Kb5 {[%clk 0:00:05.8]} 54... Rg7 {[%clk 0:00:05.4]} 55. Kc5 {[%clk 0:00:05.9]}
55... Rh7 {[%clk 0:00:04.8]} 56. Re5 {[%clk 0:00:05.7]} 56... Rg7 {[%clk
0:00:04.6]} 57. Rf5 {[%clk 0:00:06.2]} 57... Re7 {[%clk 0:00:04]} 58. Rg5 {[%clk
0:00:05.9]} 58... Rf7 {[%clk 0:00:03.9]} 59. Re5 {[%clk 0:00:05.6]} 59... Rd7
{[%clk 0:00:04.8]} 60. Rf5 {[%clk 0:00:05.3]} 60... Rg7 {[%clk 0:00:04.8]} 61.
Re5 {[%clk 0:00:05.1]} 61... Re7 {[%clk 0:00:05]} 62. Rxe7+ {[%clk 0:00:04.8]}
62... Ka6 {[%clk 0:00:05.1]} 63. b7 {[%clk 0:00:04.8]} 63... Ka5 {[%clk
0:00:04.7]} 64. Kc6 {[%clk 0:00:05.3]} 64... Kb4 {[%clk 0:00:03.3]} 65. Re5
{[%clk 0:00:05.4]} 65... Kc4 {[%clk 0:00:02.7]} 66. b8=Q {[%clk 0:00:05.8]}
66... Kd4 {[%clk 0:00:01.9]} 67. Rd5+ {[%clk 0:00:06.1]} 67... Ke4 {[%clk
0:00:01.7]} 68. Qe8+ {[%clk 0:00:06.6]} 1-0

[Event "*** Titled Tuesday Blitz"]
[Site "Chess.com"]
[Date "2020.04.14"]
[Round "3"]
[White "AlRayyan2022"]
[Black "BillieKimbah"]
[Result "0-1"]
[WhiteElo "2628"]
[BlackElo "2837"]
[TimeControl "180+1"]
[EndTime "10:29:57 PDT"]
[Termination "BillieKimbah won on time"]

1. e4 {[%clk 0:03:00.9]} 1... e5 {[%clk 0:02:58.7]} 2. Nf3 {[%clk 0:03:00.6]}
2... Nc6 {[%clk 0:02:59.2]} 3. Nc3 {[%clk 0:03:00.3]} 3... Nf6 {[%clk
0:02:58.6]} 4. a3 {[%clk 0:02:51.6]} 4... d5 {[%clk 0:02:53.1]} 5. Bb5 {[%clk
0:02:51]} 5... d4 {[%clk 0:02:26.3]} 6. Ne2 {[%clk 0:02:50.2]} 6... Bd6 {[%clk
0:02:25.8]} 7. Ng3 {[%clk 0:02:49.6]} 7... O-O {[%clk 0:02:20.9]} 8. O-O {[%clk
0:02:49]} 8... Ne7 {[%clk 0:02:20]} 9. c3 {[%clk 0:02:43.9]} 9... c5 {[%clk
0:02:18.3]} 10. b4 {[%clk 0:02:38.4]} 10... b6 {[%clk 0:02:12.5]} 11. bxc5
{[%clk 0:02:32.5]} 11... bxc5 {[%clk 0:02:12.4]} 12. cxd4 {[%clk 0:02:32.2]}
12... cxd4 {[%clk 0:02:12.2]} 13. d3 {[%clk 0:02:31.3]} 13... Ng6 {[%clk
0:02:05.6]} 14. Bc4 {[%clk 0:02:29.3]} 14... h6 {[%clk 0:01:59.9]} 15. Rb1
{[%clk 0:02:14.5]} 15... Re8 {[%clk 0:01:55.8]} 16. h3 {[%clk 0:01:51.8]} 16...
Be6 {[%clk 0:01:53.7]} 17. Bxe6 {[%clk 0:01:48.9]} 17... Rxe6 {[%clk 0:01:54.3]}
18. Nf5 {[%clk 0:01:45.9]} 18... Bf8 {[%clk 0:01:53.5]} 19. Qa4 {[%clk
0:01:32.2]} 19... Nd7 {[%clk 0:01:50.2]} 20. Bd2 {[%clk 0:01:16.4]} 20... Nc5
{[%clk 0:01:49.7]} 21. Qc4 {[%clk 0:01:08]} 21... Rc8 {[%clk 0:01:48.3]} 22.
Rfc1 {[%clk 0:01:07]} 22... Rec6 {[%clk 0:01:46.3]} 23. a4 {[%clk 0:00:37.4]}
23... Nxe4 {[%clk 0:01:37]} 24. Qxc6 {[%clk 0:00:36.6]} 24... Rxc6 {[%clk
0:01:36.1]} 25. Rxc6 {[%clk 0:00:37.1]} 25... Nxd2 {[%clk 0:01:34]} 26. Nxd2
{[%clk 0:00:37]} 26... Qd7 {[%clk 0:01:31.1]} 27. Rxg6 {[%clk 0:00:33.8]} 27...
fxg6 {[%clk 0:01:15.7]} 28. Ng3 {[%clk 0:00:34.3]} 28... Qxa4 {[%clk 0:01:16.1]}
29. Nf3 {[%clk 0:00:34.6]} 29... Qc2 {[%clk 0:01:05.3]} 30. Rb8 {[%clk
0:00:34.3]} 30... Qxd3 {[%clk 0:01:03.5]} 31. Nxe5 {[%clk 0:00:34.1]} 31... Qd1+
{[%clk 0:00:56.2]} 32. Kh2 {[%clk 0:00:34.2]} 32... Qa4 {[%clk 0:00:56.4]} 33.
Nxg6 {[%clk 0:00:31.5]} 33... Kf7 {[%clk 0:00:55.9]} 34. Nxf8 {[%clk 0:00:27.9]}
34... d3 {[%clk 0:00:56.4]} 35. Rd8 {[%clk 0:00:22.6]} 35... d2 {[%clk
0:00:49.3]} 36. Rxd2 {[%clk 0:00:22]} 36... Kxf8 {[%clk 0:00:49.8]} 37. Rd8+
{[%clk 0:00:20.5]} 37... Kf7 {[%clk 0:00:47.4]} 38. Ra8 {[%clk 0:00:21.1]} 38...
a5 {[%clk 0:00:45.2]} 39. f4 {[%clk 0:00:17.6]} 39... Qb4 {[%clk 0:00:38.4]} 40.
Ra7+ {[%clk 0:00:17.9]} 40... Kg8 {[%clk 0:00:34.4]} 41. Nh5 {[%clk 0:00:17.4]}
41... a4 {[%clk 0:00:33.6]} 42. Rxg7+ {[%clk 0:00:14.9]} 42... Kf8 {[%clk
0:00:34]} 43. Ra7 {[%clk 0:00:13.2]} 43... a3 {[%clk 0:00:33.9]} 44. Nf6 {[%clk
0:00:09.2]} 44... Qxf4+ {[%clk 0:00:33.3]} 45. Kh1 {[%clk 0:00:09]} 45... Qf1+
{[%clk 0:00:32.7]} 46. Kh2 {[%clk 0:00:07.9]} 46... Qf4+ {[%clk 0:00:32.7]} 47.
Kh1 {[%clk 0:00:07]} 47... Qf1+ {[%clk 0:00:24.6]} 48. Kh2 {[%clk 0:00:07.2]}
48... Qxf6 {[%clk 0:00:20.9]} 49. Rxa3 {[%clk 0:00:06.1]} 49... Qd6+ {[%clk
0:00:21.1]} 50. Rg3 {[%clk 0:00:06.2]} 50... h5 {[%clk 0:00:19.5]} 51. h4 {[%clk
0:00:06.3]} 51... Kf7 {[%clk 0:00:17.4]} 52. Kh3 {[%clk 0:00:06.4]} 52... Qe6+
{[%clk 0:00:16.5]} 53. Kh2 {[%clk 0:00:06.7]} 53... Qe5 {[%clk 0:00:16.5]} 54.
Kh3 {[%clk 0:00:06.8]} 54... Qf5+ {[%clk 0:00:16.9]} 55. Kh2 {[%clk 0:00:07]}
55... Qf4 {[%clk 0:00:17.3]} 56. Kh3 {[%clk 0:00:07.5]} 56... Qf5+ {[%clk
0:00:13.5]} 57. Kh2 {[%clk 0:00:07.2]} 57... Qf4 {[%clk 0:00:07.3]} 58. Kh3
{[%clk 0:00:06.9]} 58... Ke6 {[%clk 0:00:07.8]} 59. Rg5 {[%clk 0:00:06]} 59...
Qe3+ {[%clk 0:00:04.6]} 60. Kh2 {[%clk 0:00:04.5]} 60... Qf4+ {[%clk 0:00:04.9]}
61. Kh3 {[%clk 0:00:04.7]} 61... Qe3+ {[%clk 0:00:05.2]} 62. Kh2 {[%clk
0:00:05]} 62... Qe2 {[%clk 0:00:05.8]} 63. Kh3 {[%clk 0:00:04.7]} 63... Kf6
{[%clk 0:00:06.1]} 64. Kh2 {[%clk 0:00:04.7]} 64... Qd1 {[%clk 0:00:06]} 65. Rg3
{[%clk 0:00:01.7]} 65... Qd6 {[%clk 0:00:05.4]} 66. Kh3 {[%clk 0:00:01.7]} 66...
Qd7+ {[%clk 0:00:06]} 67. Kh2 {[%clk 0:00:01.6]} 67... Qd6 {[%clk 0:00:06.6]}
68. Kh3 {[%clk 0:00:01.4]} 68... Qe6+ {[%clk 0:00:07.1]} 0-1